Workbook

Sheet Sheet1
A1: 附件2：
A2: 六盘水农商银行53宗拟处置抵债资产明细情况表（第二次挂牌）
A3: 序号 | B3: 资产用途 | C3: 坐落位置 | D3: 建筑面积（㎡） | E3: 房屋现状（租赁、空置） | F3: 房屋权属情况 | G3: 本次处置价格 | H3: 备注
A4: 标的1 | B4: 商业用房 | C4: 钟山中路49号1栋102室、1层、夹层 | D4: 2376.67 | E4: 租赁 | F4: 是 | G4: 5,318,500.00
A5: 标的2 | B5: 商业用房 | C5: 钟山区钟山中路70号附5号5（栋）-1层 | D5: 5360.51 | E5: 租赁 | F5: 否 | G5: 30,394,300.00
A6: 标的3 | B6: 商业用房 | C6: 双水新区钟山东路北侧，高林路以东世纪雅苑1号楼1幢1-3层，1单元1层101号面积762.59平方米、2层201号面积762.59平方米、3层301号面积782.70平方米，面积共计2307.88平方米。 | D6: 2307.88 | E6: 租赁 | F6: 是 | G6: 13,604,000.00
A7: 标的4 | B7: 商业用房 | C7: 钟山区钟山中路70号附4号城中湾畔4号楼2层204号商业用房 | D7: 1082.22 | E7: 租赁 | F7: 否 | G7: 5,117,700.00
A8: 标的5 | B8: 商业用房 | C8: 六盘水市双水新区钟山东路北侧，高林路以东世纪雅苑2号楼1单元1层101号 | D8: 740.24 | E8: 租赁 | F8: 否 | G8: 6,014,400.00
A9: 标的6 | B9: 商业用房 | C9: 六盘水威龙房地产开发有限公司名下位于钟山区钟山中路64号1-3层，面积4099.5平方米 | D9: 4099.5 | E9: 租赁 | F9: 否 | G9: 31,152,500.00
A10: 标的7 | B10: 商用房 | C10: 六盘水市钟山区水西南路6号2号楼102室 | D10: 217.4㎡ | E10: 租赁 | F10: 是 | G10: 918,000.00
A11: 标的8 | B11: 商用房 | C11: 六盘水市钟山区水西南路6号2号楼103室 | D11: 167.91㎡ | E11: 租赁 | F11: 是 | G11: 709,100.00
A12: 标的9 | B12: 商业用房 | C12: 六盘水市钟山区钟山西路88号101、201、301、401室 | D12: 2252.96 | E12: 租赁 | F12: 否 | G12: 11,955,800.00
A13: 标的10 | B13: 商用房 | C13: 六盘水市钟山区人民中路1号房屋2-4层 | D13: 6741.94㎡ | E13: 租赁 | F13: 否 | G13: 23,946,800.00
A14: 标的11 | B14: 商用房 | C14: 六盘水市钟山区明湖路1号附414号 | D14: 75.71㎡ | E14: 空置 | F14: 否 | G14: 1,496,000.00
A15: 标的12 | B15: 商用房 | C15: 六盘水威龙房地产开发有限公司名下位于钟山区人民中路1号2至4房屋、王元群名下位于六盘水市钟山区人民中路1号的房产第三层附344号商铺 | D15: 4311.45㎡ | E15: 租赁 | F15: 否 | G15: 17,284,600.00
A16: 标的13 | B16: 商用房 | C16: 六盘水市钟山区南环中路007号103、201室 | D16: 65.2㎡ | E16: 租赁 | F16: 否 | G16: 379,600.00
A17: 标的14 | B17: 商用房 | C17: 六盘水市钟山区凤池路1号6室，分为上下2层，1层面积37.15平方米；二层面积41.67平方米。 | D17: 78.83㎡ | E17: 空置 | F17: 否 | G17: 335,200.00
A18: 标的15 | B18: 商用房 | C18: 六盘水市钟山区水西北路13号附47号 | D18: 179.8㎡ | E18: 空置 | F18: 否 | G18: 780,800.00
A19: 标的16 | B19: 住宅房 | C19: 六盘水市钟山区龙塘街1号3栋附704室3栋7层附704室 | D19: 109.46㎡ | E19: 空置 | F19: 否 | G19: 257,000.00
A20: 标的17 | B20: 商用房 | C20: 六盘水市钟山区钟山中路58 号附201号、212至216室 | D20: 133.08㎡ | E20: 空置 | F20: 否 | G20: 739,600.00
A21: 标的18 | B21: 商用房 | C21: 六盘水市钟山区钟山中路58 号2号315、336、351、364、377、381、384室 | D21: 94.82㎡ | E21: 空置 | F21: 否 | G21: 393,300.00
A22: 标的19 | B22: 商用房 | C22: 六盘水市钟山区黄山路5号30号门面 | D22: 53.76㎡ | E22: 空置 | F22: 否 | G22: 162,000.00
A23: 标的20 | B23: 商用房 | C23: 六盘水市钟山区钟山西路51号2-16号 | D23: 47.87㎡ | E23: 空置 | F23: 否 | G23: 488,000.00
A24: 标的21 | B24: 住宅房 | C24: 贵州省六盘水市钟山区区府南路金穗苑B幢502室 | D24: 155.8㎡ | E24: 租赁 | F24: 否 | G24: 514,400.00
A25: 标的22 | B25: 商用房 | C25: 钟山区八一路17号凉都花园2栋105室、204室 | D25: 203.74㎡ | E25: 租赁 | F25: 否 | G25: 1,386,800.00
A26: 标的23 | B26: 商用房 | C26: 六盘水市钟山区钟山中路51号附F1236号 | D26: 18.86㎡ | E26: 空置 | F26: 否 | G26: 126,000.00
A27: 标的24 | B27: 商用房 | C27: 六盘水市钟山区荷办杉树林村九组93号附D36 | D27: 110.36㎡ | E27: 空置 | F27: 否 | G27: 377,700.00
A28: 标的25 | B28: 住宅房 | C28: 六盘水市钟山区碧云东路10号附29号103、104室 | D28: 385.04㎡ | E28: 租赁 | F28: 否 | G28: 2,978,800.00
A29: 标的26 | B29: 商用房 | C29: 钟山区人民中路1号房屋附367号、366号 | D29: 677.46㎡ | E29: 租赁 | F29: 否 | G29: 3,710,900.00
A30: 标的27 | B30: 商用房 | C30: 钟山区碧云中路10号附2号车库102、104室 | D30: 48.91㎡ | E30: 空置 | F30: 否 | G30: 177,700.00
A31: 标的28 | B31: 商用房 | C31: 六盘水市钟山区钟山西路26号2层88号 | D31: 49.53㎡ | E31: 空置 | F31: 否 | G31: 435,600.00
A32: 标的29 | B32: 商用房 | C32: 钟山区荷城花园汽配城商业门面三号楼05号 | D32: 81.07㎡ | E32: 空置 | F32: 否 | G32: 291,500.00
A33: 标的30 | B33: 住宅房 | C33: 钟山区人民中路305号附1号住房 | D33: 128.71㎡ | E33: 空置 | F33: 否 | G33: 303,000.00
A34: 标的31 | B34: 商用房 | C34: 钟山区人民中路305号附1号门面 | D34: 39.08㎡ | E34: 空置 | F34: 否 | G34: 315,100.00
A35: 标的32 | B35: 住宅房 | C35: 钟山区碧云中路10号附44号404室 | D35: 131.02㎡ | E35: 空置 | F35: 是 | G35: 422,400.00
A36: 标的33 | B36: 住宅房 | C36: 六盘水市钟山区人民西路南侧 | D36: 69.37㎡ | E36: 空置 | F36: 否 | G36: 171,000.00
A37: 标的34 | B37: 住宅房 | C37: 六盘水市钟山区民族路12号附1号105室 | D37: 74.03㎡ | E37: 空置 | F37: 否 | G37: 201,300.00
A38: 标的35 | B38: 商用房 | C38: 钟山区南环中路57号2号楼107、118室 | D38: 45.16㎡ | E38: 空置 | F38: 否 | G38: 225,300.00
A39: 标的36 | B39: 住宅房 | C39: 钟山区碧云中路25号二单元604室 | D39: 198.13 | E39: 空置 | F39: 否 | G39: 521,900.00
A40: 标的37 | B40: 住宅房 | C40: 钟山区凤凰路9号27号603室 | D40: 136.15㎡ | E40: 空置 | F40: 否 | G40: 463,500.00
A41: 标的38 | B41: 住宅房 | C41: 钟山区工农路3-206号 | D41: 395㎡ | E41: 空置 | F41: 否 | G41: 542,200.00
A42: 标的39 | B42: 住宅房 | C42: 钟山区向阳南路14号1103号 | D42: 189.43㎡ | E42: 空置 | F42: 否 | G42: 683,500.00
A43: 标的40 | B43: 住宅房 | C43: 钟山区向阳南路14号2503、2603号、2703号 | D43: 675.42㎡ | E43: 空置 | F43: 否 | G43: 2,436,700.00
A44: 标的41 | B44: 商用房 | C44: 双水新区高林路商住楼1单元1层106号、双水新区高林路商住楼1单元1层109号、双水新区高林路商住楼1单元1层108号、双水新区高林路商住楼1单元1层107号、双水新区高林路商住楼1单元1层101号 | D44: 192.93㎡ | E44: 空置 | F44: 否 | G44: 688,400.00
A45: 标的42 | B45: 商用房 | C45: 六盘水市钟山区人民东路10号101室 | D45: 76.11㎡ | E45: 空置 | F45: 否 | G45: 789,200.00
A46: 标的43 | B46: 商用房 | C46: 钟山区民生路281号永丰国际三楼3001铺-3070铺 | D46: 1348.03㎡ | E46: 空置 | F46: 否 | G46: 3,666,800.00
A47: 标的44 | B47: 商用房 | C47: 钟山区明湖路1号附412号铺 | D47: 94.94㎡ | E47: 租赁 | F47: 否 | G47: 635,600.00
A48: 标的45 | B48: 商业用房 | C48: 钟山区凉都大道西路162号201室 | D48: 367.12㎡ | E48: 空置 | F48: 否 | G48: 998,600.00
A49: 标的46 | B49: 住房 | C49: 钟山区人民路北侧及机务巷林源康居二期住宅楼108至112室 | D49: 407.59㎡ | E49: 租赁 | F49: 否 | G49: 1,227,200.00
A50: 标的47 | B50: 住房 | C50: 钟山区人民西路98号附6号102室 | D50: 54.46㎡ | E50: 空置 | F50: 否 | G50: 140,800.00
A51: 标的48 | B51: 车库 | C51: 钟山区碧云东路10号附55号-113室 | D51: 38.72 | E51: 空置 | F51: 否 | G51: 72,500.00
A52: 标的49 | B52: 住宅房 | C52: 六盘水市钟山区碧云路10号附8号601室 | D52: 236.13㎡ | E52: 空置 | F52: 否 | G52: 524,000.00
A53: 标的50 | B53: 住宅房 | C53: 六盘水市钟山区碧云路10号附8号602室 | D53: 236.13㎡ | E53: 空置 | F53: 否 | G53: 524,000.00
A54: 标的51 | B54: 住宅房 | C54: 六盘水市钟山区人民中路214号附2号103室附2（栋）3层103号、六盘水市钟山区人民中路214号附2号203室附2（栋）4层203号 | D54: 230.50 | E54: 空置 | F54: 是 | G54: 713,900.00
A55: 标的52 | B55: 商业用房 | C55: 钟山区八一路17号凉都花园6栋203至205室、8栋205、206室 | D55: 768.85 | E55: 空置 | F55: 否 | G55: 3,496,800.00
A56: 标的53 | B56: 住房 | C56: 钟山区碧云东路10号附55号2单元505室 | D56: 106.10 | E56: 空置 | F56: 否 | G56: 344,400.00
G57: =SUM(G4:G56) -> 181,554,700.00

Sheet Sheet2
A1: 附件2：
A2: 六盘水农商银行抵债资产明细情况表
A3: 序号 | B3: 原抵押人名称 | C3: 原债务人名称 | D3: 资产类型 | E3: 坐落 | F3: 抵债面积 | G3: 抵债时间 | H3: 抵债金额 | I3: 是否过户 | J3: 处置价格 | K3: 预计租金收入 | L3: 已计提减值准备 | M3: 待变现利息 | N3: 2024年（含）以前的评估价格 | O3: 评估时间 | P3: 2024年流拍价 | Q3: 流拍价与评估价差 | R3: 流拍价与评估价取孰低值 | S3: 评估价与抵债金额差额 | T3: 原抵债资产净值 | U3: 按待变现净值法应补计提减值 | V3: 补提减值准备后抵债资产净值
A4: 1 | B4: 六盘水天龙房地产开发有限公司、杨旺梅、杜毅 | C4: 六盘水市天龙物业公司 | D4: 商业用房 | E4: 1、天龙大厦1层； 2、天龙大厦1层夹层 | F4: 2376.67 | G4: 2010/11/30 | H4: 6,808,023.57 | I4: 是 | K4: 185,004.00 | L4: 3,666,464.28 | M4: 3,040,035.00 | N4: 9,411,065.67 | O4: 2024-07-03 | P4: 7,528,900.00 | Q4: =N4-P4 -> 1,882,165.67 | R4: =MIN(N4,P4) -> 7,528,900.00 | S4: =N4-H4 -> 2603042.1 | T4: =H4-L4-M4 -> 101,524.29 | U4: =IF(R4-T4<0,R4-T4,0) -> 0.00 | V4: =T4+U4 -> 101524.29
A5: 2 | B5: 六盘水德远房地产开发有限公司 | C5: 六盘水鑫福源商贸有限公司 | D5: 商业用房 | E5: 钟山区钟山中路70号附5号5（栋）-1层 | F5: 5360.51 | G5: 2021/12/31 | H5: 37,992,794.64 | I5: 否 | K5: 266,376.00 | N5: 27,649,510.58 | O5: 2024-07-03 | P5: 30,394,300.00 | Q5: -2,744,789.42 | R5: 27,649,510.58 | S5: -10343284.06 | T5: 37,992,794.64 | U5: -10343284.06 | V5: 27649510.58
A6: 3 | B6: 贵州新世纪集团房地产开发有限公司 | C6: 贵州新世纪集团房地产开发有限公司 | D6: 商业用房 | E6: 双水新区钟山东路北侧，高林路以东世纪雅苑1号楼1幢1-3层，1单元1层101号面积762.59平方米、2层201号面积762.59平方米、3层301号面积782.70平方米，面积共计2307.88平方米。 | F6: 2307.88 | G6: 20130202 | H6: 17,005,009.84 | I6: 是 | K6: 454,881.00 | L6: 817,216.80 | M6: 8,832,806.86 | N6: 12,156,262.00 | O6: 2024-07-03 | P6: 12,753,800.00 | Q6: -597,538.00 | R6: 12,156,262.00 | S6: -4848747.84 | T6: 7,354,986.18 | U6: 0.00 | V6: 7354986.18
A7: 4 | B7: 六盘水德远商贸有限公司 | C7: 六盘水德远房地产开发有限公司 | D7: 商业用房 | E7: 钟山区钟山中路70号附4号城中湾畔4号楼2层204号商业用房 | F7: 1082.22 | G7: 20220810 | H7: 6,397,080.37 | I7: 否 | K7: 220,776.00 | N7: 5,821,261.00 | O7: 2024-07-03 | P7: 4,797,900.00 | Q7: 1,023,361.00 | R7: 4,797,900.00 | S7: -575819.37 | T7: 6,397,080.37 | U7: -1599180.37 | V7: 4797900.00
A8: 5 | B8: 六盘水森伟门窗有限公司 | C8: 贺宇 | D8: 商业用房 | E8: 六盘水市双水新区钟山东路北侧，高林路以东世纪雅苑2号楼1单元1层101号 | F8: 740.24 | G8: 20240127 | H8: 7,517,970.00 | I8: 否 | K8: 128,000.00 | N8: 7,517,970.00 | O8: 2023-08-08 | P8: 6,682,700.00 | Q8: 835,270.00 | R8: 6,682,700.00 | S8: 0 | T8: 7,517,970.00 | U8: -835270.00 | V8: 6682700.00
A9: 6 | B9: 六盘水华龙物资贸易有限公司 | C9: 六盘水威龙房地产开发有限公司 | D9: 商业用房 | E9: 六盘水威龙房地产开发有限公司名下位于钟山区钟山中路64号1-3层，面积4099.5平方米 | F9: 4099.5 | G9: 2018/11/29 | H9: 38,940,504.94 | I9: 否 | K9: 693,500.00 | L9: 2,884,556.48 | N9: 26,302,392.00 | O9: 2024-05-08 | P9: 29,204,000.00 | Q9: -2,901,608.00 | R9: 26,302,392.00 | S9: -12638112.94 | T9: 36,055,948.46 | U9: -9753556.46 | V9: 26302392.00
A10: 7 | B10: 余漫宇 | C10: 听涛寨林中酒菜馆 | D10: 商用房 | E10: 六盘水市钟山区水西南路6号2号楼102室 | F10: 217.4㎡ | G10: 2017/09/29 | H10: 1,147,400.00 | I10: 是 | K10: 80,000.00 | M10: 57,239.68 | N10: 1,102,900.00 | O10: 2023-07-30 | P10: 872,000.00 | Q10: 230,900.00 | R10: 872,000.00 | S10: -44500 | T10: 1,090,160.32 | U10: -218160.32 | V10: 872000.00
A11: 8 | B11: 余漫宇 | C11: 余漫云 | D11: 商用房 | E11: 六盘水市钟山区水西南路6号2号楼103室 | F11: 167.91㎡ | G11: 2017/09/29 | H11: 886,200.01 | I11: 是 | M11: 136,118.80 | N11: 851,800.00 | O11: 2023-07-30 | P11: 673,600.00 | Q11: 178,200.00 | R11: 673,600.00 | S11: -34400.01 | T11: 750,081.21 | U11: -76481.21 | V11: 673600.00
A12: 9 | B12: 六盘水森湟商贸有限公司 | C12: 赵红 | D12: 商业用房 | E12: 六盘水市钟山区钟山西路88号101、201、301、401室 | F12: 2252.96 | G12: 20171212 | H12: 14,942,442.86 | I12: 否 | K12: 354,490.75 | L12: 1,119,806.79 | M12: 3,744,375.00 | N12: 14,801,000.00 | O12: 2023-07-30 | P12: 11,356,300.00 | Q12: 3,444,700.00 | R12: 11,356,300.00 | S12: -141442.86 | T12: 10,078,261.07 | U12: 0.00 | V12: 10078261.07
A13: 10 | B13: 王元群 | C13: 六盘水港隆贸易有限责任公司 | D13: 商用房 | E13: 六盘水市钟山区人民中路1号房屋2-4层 | F13: 6741.94㎡ | G13: 2018/07/30 | H13: 29,933,369.16 | I13: 否 | K13: 662,127.50 | L13: 2,993,142.86 | N13: 31,255,950.00 | O13: 2024-07-03 | P13: 24,980,800.00 | Q13: 6,275,150.00 | R13: 24,980,800.00 | S13: 1322580.84 | T13: 26,940,226.30 | U13: -1959426.30 | V13: 24980800.00
A14: 11 | B14: 唐珍发 | C14: 唐珍发 | D14: 商用房 | E14: 六盘水市钟山区明湖路1号附414号 | F14: 75.71㎡ | G14: 2018/09/18 | H14: 1,869,847.18 | I14: 否 | L14: 186,984.72 | N14: 1,341,800.00 | O14: 2023-07-30 | P14: 1,421,100.00 | Q14: -79,300.00 | R14: 1,341,800.00 | S14: -528047.18 | T14: 1,682,862.46 | U14: -341062.46 | V14: 1341800.00
A15: 12 | B15: 六盘水威龙房地产开发有限公司、王元群 | C15: 六盘水威龙房地产开发有限公司 | D15: 商用房 | E15: 六盘水威龙房地产开发有限公司名下位于钟山区人民中路1号2至4房屋、王元群名下位于六盘水市钟山区人民中路1号的房产第三层附344号商铺 | F15: 4311.45㎡ | G15: 2018/11/29 | H15: 21,605,609.79 | I15: 否 | L15: 3,169,853.01 | N15: 22,505,144.00 | O15: 2024-07-03 | P15: 18,004,200.00 | Q15: 4,500,944.00 | R15: 18,004,200.00 | S15: 899534.21 | T15: 18,435,756.78 | U15: -431556.78 | V15: 18004200.00
A16: 13 | B16: 王家发 | C16: 王家发 | D16: 商用房 | E16: 六盘水市钟山区南环中路007号103、201室 | F16: 65.2㎡ | G16: 2018/12/06 | H16: 474,324.29 | I16: 否 | L16: 47,432.43 | N16: 303,400.00 | O16: 2023-07-30 | P16: 360,500.00 | Q16: -57,100.00 | R16: 303,400.00 | S16: -170924.29 | T16: 426,891.86 | U16: -123491.86 | V16: 303400.00
A17: 14 | B17: 张雄 | C17: 张雄 | D17: 商用房 | E17: 六盘水市钟山区凤池路1号6室，分为上下2层，1层面积37.15平方米；二层面积41.67平方米。 | F17: 78.83㎡ | G17: 2012/12/06 | H17: 418,885.71 | I17: 否 | L17: 41,888.57 | N17: 403,400.00 | O17: 2023-07-30 | P17: 318,400.00 | Q17: 85,000.00 | R17: 318,400.00 | S17: -15485.71 | T17: 376,997.14 | U17: -58597.14 | V17: 318400.00
A18: 15 | B18: 熊剑 | C18: 六盘水市钟山开发区泰瑞商务酒店有限公司 | D18: 商用房 | E18: 六盘水市钟山区水西北路13号附47号 | F18: 179.8㎡ | G18: 2018/12/29 | H18: 975,990.86 | I18: 否 | L18: 49,159.16 | N18: 975,990.86 | P18: 975,990.86 | Q18: 0.00 | R18: 975,990.86 | S18: 0 | T18: 926,831.70 | U18: 0.00 | V18: 926831.70
A19: 16 | B19: 刘二平 | C19: 刘萍 | D19: 住宅房 | E19: 六盘水市钟山区龙塘街1号3栋附704室3栋7层附704室 | F19: 109.46㎡ | G19: 2019/06/28 | H19: 321,161.14 | I19: 否 | L19: 20,249.70 | N19: 322,031.00 | O19: 2024-07-03 | P19: 257,700.00 | Q19: 64,331.00 | R19: 257,700.00 | S19: 869.86 | T19: 300,911.44 | U19: -43211.44 | V19: 257700.00
A20: 17 | B20: 彭青松 | C20: 何玮 | D20: 商用房 | E20: 六盘水市钟山区钟山中路58 号附201号、212至216室 | F20: 133.08㎡ | G20: 2019/09/29 | H20: 924,398.68 | I20: 否 | L20: 154,542.37 | N20: 924,398.68 | P20: 924,398.68 | Q20: 0.00 | R20: 924,398.68 | S20: 0 | T20: 769,856.31 | U20: 0.00 | V20: 769856.31
A21: 18 | B21: 彭青松 | C21: 宋文杰 | D21: 商用房 | E21: 六盘水市钟山区钟山中路58 号2号315、336、351、364、377、381、384室 | F21: 94.82㎡ | G21: 2019/09/29 | H21: 491,591.63 | I21: 否 | L21: 64,290.98 | N21: 491,591.63 | P21: 491,591.63 | Q21: 0.00 | R21: 491,591.63 | S21: 0 | T21: 427,300.65 | U21: 0.00 | V21: 427300.65
A22: 19 | B22: 张超 | C22: 张超 | D22: 商用房 | E22: 六盘水市钟山区黄山路5号30号门面 | F22: 53.76㎡ | G22: 2019/09/30 | H22: 202,497.03 | I22: 否 | N22: 202,497.03 | P22: 202,497.03 | Q22: 0.00 | R22: 202,497.03 | S22: 0 | T22: 202,497.03 | U22: 0.00 | V22: 202497.03
A23: 20 | B23: 林杜鹃 | C23: 六盘水万鸿商贸有限公司 | D23: 商用房 | E23: 六盘水市钟山区龙井路16号附1号109室 | F23: 72.42㎡ | G23: 2019/11/15 | H23: 478,328.37 | I23: 否 | K23: 6,000.00 | N23: 478,328.37 | P23: 478,328.37 | Q23: 0.00 | R23: 478,328.37 | S23: 0 | T23: 478,328.37 | U23: 0.00 | V23: 478328.37
A24: 21 | B24: 陈金菊 | C24: 六盘水万鸿商贸有限公司 | D24: 商用房 | E24: 六盘水市钟山区钟山西路51号2-16号 | F24: 47.87㎡ | G24: 2019/11/15 | H24: 609,964.74 | I24: 否 | N24: 325,420.00 | O24: 2024-07-03 | P24: 488,000.00 | Q24: -162,580.00 | R24: 325,420.00 | S24: -284544.74 | T24: 609,964.74 | U24: -284544.74 | V24: 325420.00
A25: 22 | B25: 张琼 | C25: 张琼 | D25: 住宅房 | E25: 贵州省六盘水市钟山区区府南路金穗苑B幢502室 | F25: 155.8㎡ | G25: 2019/11/26 | H25: 642,909.80 | I25: 否 | N25: 530,810.60 | O25: 2024-07-03 | P25: 514,400.00 | Q25: 16,410.60 | R25: 514,400.00 | S25: -112099.2 | T25: 642,909.80 | U25: -128509.80 | V25: 514400.00
A26: 23 | B26: 訾正然 | C26: 六盘水钟山开发区立志砂石有限责任公司 | D26: 土地 | E26: 六盘水市钟山区茶叶林路 | F26: 1645.12㎡ | G26: 2019/12/26 | H26: 2,609,130.33 | I26: 否 | N26: 2,549,000.00 | O26: 2023-07-30 | P26: 198,300.00 | Q26: 2,350,700.00 | R26: 198,300.00 | S26: -60130.33 | T26: 2,609,130.33 | U26: -2410830.33 | V26: 198300.00
A27: 24 | B27: 唐东 | C27: 六盘水华南汽车运输有限公司 | D27: 商用房 | E27: 钟山区八一路17号凉都花园2栋105室、204室 | F27: 203.74㎡ | G27: 2019/12/25 | H27: 1,733,441.14 | I27: 否 | K27: 32,000.00 | N27: 1,716,700.00 | O27: 2023-07-30 | P27: 1,317,500.00 | Q27: 399,200.00 | R27: 1,317,500.00 | S27: -16741.14 | T27: 1,733,441.14 | U27: -415941.14 | V27: 1317500.00
A28: 25 | B28: 陈义群 | C28: 陈义群 | D28: 商用房 | E28: 六盘水市钟山区钟山中路51号附F1236号 | F28: 18.86㎡ | G28: 2019/12/27 | H28: 157,498.72 | I28: 否 | N28: 127,606.76 | O28: 2024-07-03 | P28: 126,000.00 | Q28: 1,606.76 | R28: 126,000.00 | S28: -29891.96 | T28: 157,498.72 | U28: -31498.72 | V28: 126000.00
A29: 26 | B29: 熊和辉 | C29: 六盘水市钟山开发区泰瑞商务酒店有限公司 | D29: 商用房 | E29: 六盘水市钟山区荷办杉树林村九组93号附D36 | F29: 110.36㎡ | G29: 2020/01/19 | H29: 472,002.94 | I29: 否 | N29: 455,897.16 | O29: 2024-07-03 | P29: 377,700.00 | Q29: 78,197.16 | R29: 377,700.00 | S29: -16105.78 | T29: 472,002.94 | U29: -94302.94 | V29: 377700.00
A30: 27 | B30: 贵州三得投资控股有限公司 | C30: 贵州三得利达工矿贸易有限公司 | D30: 土地 | E30: 钟山区南环路西延伸段 | F30: 19400.07㎡ | G30: 2020/02/27 | H30: 42,164,874.83 | I30: 是 | K30: 35,000.00 | N30: 42,164,874.83 | P30: 42,164,874.83 | Q30: 0.00 | R30: 42,164,874.83 | S30: 0 | T30: 42,164,874.83 | U30: 0.00 | V30: 42164874.83
A31: 28 | B31: 王学亮 | C31: 王雄 | D31: 住宅房 | E31: 六盘水市钟山区老鹰山镇陆家坝村109处 | F31: 279.18㎡ | G31: 2020/09/30 | H31: 450,630.46 | I31: 否 | N31: 252,378.72 | O31: 2024-07-03 | P31: 360,600.00 | Q31: -108,221.28 | R31: 252,378.72 | S31: -198251.74 | T31: 450,630.46 | U31: -198251.74 | V31: 252378.72
A32: 29 | B32: 张刈 | C32: 六盘水恒达建筑装饰工程有限公司 | D32: 住宅房 | E32: 六盘水市钟山区碧云东路10号附29号103、104室 | F32: 385.04㎡ | G32: 2020/10/31 | H32: 3,723,225.94 | I32: 否 | K32: 48,000.00 | N32: 3,638,200.00 | O32: 2023-07-30 | P32: 3,638,200.00 | Q32: 0.00 | R32: 3,638,200.00 | S32: -85025.94 | T32: 3,723,225.94 | U32: -85025.94 | V32: 3638200.00
A33: 30 | B33: 六盘水隆大鑫贸易有限公司 | C33: 六盘水威龙房地产开发有限公司 | D33: 商用房 | E33: 钟山区人民中路1号房屋附367号、366号 | F33: 677.46㎡ | G33: 2020/11/05 | H33: 4,638,551.92 | I33: 否 | N33: 2,964,344.00 | O33: 2024-07-03 | P33: 3,711,000.00 | Q33: -746,656.00 | R33: 2,964,344.00 | S33: -1674207.92 | T33: 4,638,551.92 | U33: -1674207.92 | V33: 2964344.00
A34: 31 | B34: 卢启琴 | C34: 林立得 | D34: 商用房 | E34: 钟山区碧云中路10号附2号车库102、104室 | F34: 48.91㎡ | G34: 2020/12/30 | H34: 222,006.86 | I34: 否 | N34: 222,006.86 | P34: 222,006.86 | Q34: 0.00 | R34: 222,006.86 | S34: 0 | T34: 222,006.86 | U34: 0.00 | V34: 222006.86
A35: 32 | B35: 陈昌杰 | C35: 威宁县宏泰洗煤有限责任公司 | D35: 住宅房 | E35: 花溪区花石路南湖小区7幢2单元6-7层4号 | F35: 190.88㎡ | G35: 2020/12/30 | H35: 1,379,700.00 | I35: 否 | N35: 1,014,527.00 | O35: 2024-09-05 | P35: 1,048,600.00 | Q35: -34,073.00 | R35: 1,014,527.00 | S35: -365173 | T35: 1,379,700.00 | U35: -365173.00 | V35: 1014527.00
A36: 33 | B36: 罗昊明 | C36: 罗昊明 | D36: 商用房 | E36: 六盘水市钟山区钟山西路26号2层88号 | F36: 49.53㎡ | G36: 2021/06/24 | H36: 544,308.90 | I36: 否 | N36: 480,590.00 | O36: 2024-07-03 | P36: 435,500.00 | Q36: 45,090.00 | R36: 435,500.00 | S36: -63718.9 | T36: 544,308.90 | U36: -108808.90 | V36: 435500.00
A37: 34 | B37: 宋元进 | C37: 宋元进 | D37: 商用房 | E37: 钟山区荷城花园汽配城商业门面三号楼05号 | F37: 81.07㎡ | G37: 2021/09/29 | H37: 364,299.61 | I37: 否 | N37: 388,650.00 | O37: 2024-07-03 | P37: 311,000.00 | Q37: 77,650.00 | R37: 311,000.00 | S37: 24350.39 | T37: 364,299.61 | U37: -53299.61 | V37: 311000.00
A38: 35 | B38: 顾琼 | C38: 顾琼 | D38: 住宅房 | E38: 钟山区人民中路305号附1号住房 | F38: 128.71㎡ | G38: 2021/09/29 | H38: 378,632.00 | I38: 否 | N38: 410,198.77 | O38: 2024-07-03 | P38: 618,000.00 | Q38: -207,801.23 | R38: 410,198.77 | S38: 31566.77 | T38: 378,632.00 | U38: 0.00 | V38: 378632.00
A39: 36 | B39: 顾琼 | C39: 顾琼 | D39: 商用房 | E39: 钟山区人民中路305号附1号门面 | F39: 39.08㎡ | G39: 2021/09/29 | H39: 393,779.89 | I39: 否 | N39: 261,249.80 | O39: 2024-07-03 | P39: 393,779.89 | Q39: -132,530.09 | R39: 261,249.80 | S39: -132530.09 | T39: 393,779.89 | U39: -132530.09 | V39: 261249.80
A40: 37 | B40: 张光云 | C40: 张光云 | D40: 住宅房 | E40: 钟山区碧云中路10号附44号404室 | F40: 131.02㎡ | G40: 2021/09/29 | H40: 527,842.29 | I40: 是 | N40: 467,348.00 | O40: 2024-08-30 | P40: 401,200.00 | Q40: 66,148.00 | R40: 401,200.00 | S40: -60494.29 | T40: 527,842.29 | U40: -126642.29 | V40: 401200.00
A41: 38 | B41: 叶远树 | C41: 泸州市第七建筑工程公司六盘水分公司 | D41: 住宅房 | E41: 六盘水市钟山区人民西路南侧 | F41: 69.37㎡ | G41: 2021/12/20 | H41: 213,623.87 | I41: 否 | N41: 179,390.82 | O41: 2024-07-03 | P41: 171,000.00 | Q41: 8,390.82 | R41: 171,000.00 | S41: -34233.05 | T41: 213,623.87 | U41: -42623.87 | V41: 171000.00
A42: 39 | B42: 叶远树 | C42: 泸州市第七建筑工程公司六盘水分公司 | D42: 住宅房 | E42: 六盘水市钟山区民族路12号附1号105室 | F42: 74.03㎡ | G42: 2021/12/20 | H42: 251,593.10 | I42: 否 | N42: 220,017.16 | O42: 2024-07-03 | P42: 201,300.00 | Q42: 18,717.16 | R42: 201,300.00 | S42: -31575.94 | T42: 251,593.10 | U42: -50293.10 | V42: 201300.00
A43: 40 | B43: 叶远树、熊维萍 | C43: 泸州市第七建筑工程公司六盘水分公司 | D43: 住宅房 | E43: 泸州市江阳区丹青路5号20幢6层3单元11号 | F43: 238.02㎡ | G43: 2021/12/20 | H43: 1,828,530.00 | I43: 否 | N43: 1,828,530.00 | P43: 1,828,530.00 | Q43: 0.00 | R43: 1,828,530.00 | S43: 0 | T43: 1,828,530.00 | U43: 0.00 | V43: 1828530.00
A44: 41 | B44: 叶远树、熊维萍 | C44: 泸州市第七建筑工程公司六盘水分公司 | D44: 商用房 | E44: 泸州市江阳区丹青路5号20幢6层3单元11号-2层030号 | F44: 37.95㎡ | G44: 2021/12/20 | H44: 144,000.00 | I44: 否 | N44: 144,000.00 | P44: 144,000.00 | Q44: 0.00 | R44: 144,000.00 | S44: 0 | T44: 144,000.00 | U44: 0.00 | V44: 144000.00
A45: 42 | B45: 谭洪刚 | C45: 谭翌 | D45: 商用房 | E45: 钟山区南环中路57号2号楼107、118室 | F45: 45.16㎡ | G45: 2022/03/29 | H45: 280,408.11 | I45: 否 | N45: 210,900.00 | O45: 2023-07-30 | P45: 213,200.00 | Q45: -2,300.00 | R45: 210,900.00 | S45: -69508.11 | T45: 280,408.11 | U45: -69508.11 | V45: 210900.00
A46: 43 | B46: 何永明 | C46: 何永明 | D46: 住宅房 | E46: 钟山区碧云中路25号二单元604室 | F46: 198.13 | G46: 2022/03/29 | H46: 652,130.74 | I46: 否 | N46: 672,651.00 | O46: 2023-08-30 | P46: 511,300.00 | Q46: 161,351.00 | R46: 511,300.00 | S46: 20520.26 | T46: 652,130.74 | U46: -140830.74 | V46: 511300.00
A47: 44 | B47: 胡兴超 | C47: 胡兴超 | D47: 住宅房 | E47: 钟山区凤凰路9号27号603室 | F47: 136.15㎡ | G47: 2022/05/07 | H47: 579,217.14 | I47: 否 | N47: 523,361.00 | O47: 2023-08-30 | P47: 440,300.00 | Q47: 83,061.00 | R47: 440,300.00 | S47: -55856.14 | T47: 579,217.14 | U47: -138917.14 | V47: 440300.00
A48: 45 | B48: 六盘水全聚福房地产开发有限公司 | C48: 六盘水全聚福房地产开发有限公司 | D48: 在建工程 | E48: “全聚福小商品市场”项目的6-27栋1-2层 | F48: 6307.57㎡ | G48: 2022/06/28 | H48: 36,109,571.50 | I48: 否 | K48: 106,588.00 | N48: 36,109,571.50 | P48: 36,109,571.50 | Q48: 0.00 | R48: 36,109,571.50 | S48: 0 | T48: 36,109,571.50 | U48: 0.00 | V48: 36109571.50
A49: 46 | B49: 莫云南 | C49: 莫云南 | D49: 住宅房 | E49: 钟山区工农路3-206号 | F49: 395㎡ | G49: 2022/06/08 | H49: 677,671.93 | I49: 否 | N49: 523,075.24 | O49: 2024-05-08 | P49: 508,300.00 | Q49: 14,775.24 | R49: 508,300.00 | S49: -154596.69 | T49: 677,671.93 | U49: -169371.93 | V49: 508300.00
A50: 47 | B50: 叶丽群 | C50: 六盘水德远商贸有限公司 | D50: 住宅房 | E50: 钟山区向阳南路14号1102号 | F50: 160.06㎡ | G50: 2022/08/10 | H50: 721,815.43 | I50: 否 | N50: 689,859.00 | O50: 2023-08-31 | P50: 553,400.00 | Q50: 136,459.00 | R50: 553,400.00 | S50: -31956.43 | T50: 721,815.43 | U50: -168415.43 | V50: 553400.00
A51: 48 | B51: 叶丽群 | C51: 六盘水德远商贸有限公司 | D51: 住宅房 | E51: 钟山区向阳南路14号1103号 | F51: 189.43㎡ | G51: 2022/08/10 | H51: 854,218.29 | I51: 否 | N51: 816,443.00 | O51: 2023-08-31 | P51: 644,600.00 | Q51: 171,843.00 | R51: 644,600.00 | S51: -37775.29 | T51: 854,218.29 | U51: -209618.29 | V51: 644600.00
A52: 49 | B52: 程兴平 | C52: 六盘水德远商贸有限公司 | D52: 住宅房 | E52: 钟山区向阳南路14号2503、2603号、2703号 | F52: 675.42㎡ | G52: 2022/08/10 | H52: 3,045,754.29 | I52: 否 | N52: 2,970,497.00 | O52: 2023-08-31 | P52: 2,314,800.00 | Q52: 655,697.00 | R52: 2,314,800.00 | S52: -75257.29 | T52: 3,045,754.29 | U52: -730954.29 | V52: 2314800.00
A53: 50 | B53: 马茂林 | C53: 六盘水德远商贸有限公司 | D53: 住宅房 | E53: 都匀市东山大道北段28号七星未来城星奢园A区4栋1单元16层1号 | F53: 126.47㎡ | G53: 2022/08/10 | H53: 515,565.00 | I53: 否 | N53: 515,565.00 | P53: 515,565.00 | Q53: 0.00 | R53: 515,565.00 | S53: 0 | T53: 515,565.00 | U53: 0.00 | V53: 515565.00
A54: 51 | B54: 陈祖贤 | C54: 陈祖贤 | D54: 商用房 | E54: 双水新区高林路商住楼1单元1层106号、双水新区高林路商住楼1单元1层109号、双水新区高林路商住楼1单元1层108号、双水新区高林路商住楼1单元1层107号、双水新区高林路商住楼1单元1层101号 | F54: 192.93㎡ | G54: 2022/10/27 | H54: 860,490.00 | I54: 否 | N54: 794,292.81 | O54: 2024-07-03 | P54: 688,400.00 | Q54: 105,892.81 | R54: 688,400.00 | S54: -66197.19 | T54: 860,490.00 | U54: -172090.00 | V54: 688400.00
A55: 52 | B55: 陶智华 | C55: 王洪波 | D55: 商用房 | E55: 六盘水市钟山区人民东路10号101室 | F55: 76.11㎡ | G55: 2022/11/22 | H55: 986,385.60 | I55: 否 | N55: 776,093.67 | O55: 2024-07-03 | P55: 789,200.00 | Q55: -13,106.33 | R55: 776,093.67 | S55: -210291.93 | T55: 986,385.60 | U55: -210291.93 | V55: 776093.67
A56: 53 | B56: 都匀新德远置业有限公司 | C56: 都匀新德远置业有限公司 | D56: 在建工程 | E56: 都匀市草塘路34号七星未来城A区4号地块水街1层1号至25号、2层1号至62号、3层1号至5号、4层1号、3号、5号 | F56: 9101.62㎡ | G56: 2022/12/26 | H56: 81,604,952.50 | I56: 否 | K56: 182,772.54 | N56: 81,604,952.50 | P56: 81,604,952.50 | Q56: 0.00 | R56: 81,604,952.50 | S56: 0 | T56: 81,604,952.50 | U56: 0.00 | V56: 81604952.50
A57: 54 | B57: 六盘水人和房地产开发有限公司 | C57: 六盘水人和房地产开发有限公司 | D57: 商用房 | E57: 钟山区民生路281号永丰国际三楼3001铺-3070铺 | F57: 1348.03㎡ | G57: 2023/02/28 | H57: 4,583,303.00 | I57: 否 | N57: 6,155,104.98 | O57: 2024-05-08 | P57: 4,616,400.00 | Q57: 1,538,704.98 | R57: 4,616,400.00 | S57: 1571801.98 | T57: 4,583,303.00 | U57: 0.00 | V57: 4583303.00
A58: 55 | B58: 严格 | C58: 严伟 | D58: 商用房 | E58: 钟山区明湖路1号附412号铺 | F58: 94.94㎡ | G58: 2023/03/30 | H58: 793,850.40 | I58: 否 | K58: 28,000.00 | N58: 903,259.00 | O58: 2023-08-31 | P58: 686,500.00 | Q58: 216,759.00 | R58: 686,500.00 | S58: 109408.6 | T58: 793,850.40 | U58: -107350.40 | V58: 686500.00
A59: 56 | B59: 贵州铁马汽车有限公司 | C59: 贵州铁马汽车有限公司 | D59: 土地 | E59: 六盘水市钟山区月照乡马坝村 | F59: 41862.58㎡ | G59: 2023/03/30 | H59: 39,362,994.00 | I59: 否 | K59: 700,000.00 | N59: 49,615,631.00 | O59: 2024-07-03 | P59: 39,692,600.00 | Q59: 9,923,031.00 | R59: 39,692,600.00 | S59: 10252637 | T59: 39,362,994.00 | U59: 0.00 | V59: 39362994.00
A60: 57 | B60: 六盘水汇麒房地产开发有限公司 | C60: 六盘水汇麒房地产开发有限公司 | D60: 在建工程 | E60: 六盘水市钟山区人民中路与水西路交汇处西北侧19套商业用房在建工程 | F60: 1437.44㎡ | G60: 2023/08/30 | H60: 4,200,000.00 | I60: 否 | N60: 4,200,000.00 | P60: 4,200,000.00 | Q60: 0.00 | R60: 4,200,000.00 | S60: 0 | T60: 4,200,000.00 | U60: 0.00 | V60: 4200000.00
A61: 58 | B61: 腾焱 | C61: 六盘水亿茂农业综合开发有限公司 | D61: 商业用房 | E61: 钟山区凉都大道西路162号201室 | F61: 367.12㎡ | G61: 2023/08/30 | H61: 1,248,120.00 | I61: 否 | N61: 1,651,672.88 | O61: 2024-05-08 | P61: 1,238,800.00 | Q61: 412,872.88 | R61: 1,238,800.00 | S61: 403552.88 | T61: 1,248,120.00 | U61: -9320.00 | V61: 1238800.00
A62: 59 | B62: 贵州佳景美地房地产开发有限公司 | C62: 贵州佳景美地房地产开发有限公司 | D62: 在建工程 | E62: 贵州佳景美地房地产开发有限公司名下位于安顺市平坝区天马路佳景财富苑1、2号楼97处在建工程的房产 | F62: 6131.38㎡ | G62: 2023-12-18 | H62: 28,103,436.00 | I62: 否 | N62: 28,103,436.00 | P62: 28,103,436.00 | Q62: 0.00 | R62: 28,103,436.00 | S62: 0 | T62: 28,103,436.00 | U62: 0.00 | V62: 28103436.00
A63: 60 | B63: 李志清 | C63: 李志清 | D63: 商业用房 | E63: 钟山区人民中路1号（威龙家居正门旁）附93号、附172号 | F63: 151.69㎡ | G63: 2023-12-22 | H63: 1,466,837.40 | I63: 否 | N63: 1,466,837.40 | O63: 2024-05-08 | P63: 1,699,000.00 | Q63: -232,162.60 | R63: 1,466,837.40 | S63: 0 | T63: 1,466,837.40 | U63: 0.00 | V63: 1466837.40
A64: 61 | B64: 李远吉 | C64: 李志清 | D64: 住房 | E64: 钟山区人民路北侧及机务巷林源康居二期住宅楼108至112室 | F64: 407.59㎡ | G64: 2023-12-22 | H64: 1,531,026.00 | I64: 否 | K64: 40,000.00 | N64: 1,531,026.00 | O64: 2024-05-08 | P64: 1,938,500.00 | Q64: -407,474.00 | R64: 1,531,026.00 | S64: 0 | T64: 1,531,026.00 | U64: 0.00 | V64: 1531026.00
A65: 62 | B65: 都匀新德远置业有限公司 | C65: 都匀新德远置业有限公司 | D65: 在建工程 | E65: 都匀新德远置业有限公司名下位于都匀市173转盘西北面、东山大道西侧七星未来城4号地块4号水街4层2号及4号2套商业资产，面积合计904.98平方米 | F65: 904.98㎡ | G65: 2023-12-26 | H65: 5,551,764.40 | I65: 否 | N65: 5,551,764.40 | P65: 5,551,764.40 | Q65: 0.00 | R65: 5,551,764.40 | S65: 0 | T65: 5,551,764.40 | U65: 0.00 | V65: 5551764.40
A66: 63 | B66: 张毅 | C66: 张毅 | D66: 住房 | E66: 钟山区人民西路98号附6号102室 | F66: 54.46㎡ | G66: 2023-12-29 | H66: 175,980.24 | I66: 否 | N66: 173,564.02 | O66: 2024-05-08 | P66: 140,800.00 | Q66: 32,764.02 | R66: 140,800.00 | S66: -2416.22 | T66: 175,980.24 | U66: -35180.24 | V66: 140800.00
A67: 64 | B67: 叶明辉 | C67: 叶明辉 | D67: 车库 | E67: 钟山区碧云东路10号附55号-113室 | F67: 38.72 | G67: 2024-05-31 | H67: 90,574.00 | I67: 否 | N67: 90,574.00 | O67: 2023-08-23 | P67: 90,574.00 | Q67: 0.00 | R67: 90,574.00 | S67: 0 | T67: 90,574.00 | U67: 0.00 | V67: 90574.00
A68: 65 | B68: 康民海 | C68: 康民海 | D68: 住宅房 | E68: 六盘水市钟山区碧云路10号附8号601室 | F68: 236.13㎡ | G68: 2024-12-20 | H68: 654,980.00 | I68: 否 | N68: 654,980.00 | P68: 654,980.00 | Q68: =N68-P68 -> 0.00 | R68: =MIN(N68,P68) -> 654,980.00 | S68: =N68-H68 -> 0 | T68: =H68-L68-M68 -> 654,980.00 | U68: =IF(R68-T68<0,R68-T68,0) -> 0.00 | V68: =T68+U68 -> 654980.00
A69: 66 | B69: 康民海 | C69: 康民海 | D69: 住宅房 | E69: 六盘水市钟山区碧云路10号附8号602室 | F69: 236.13㎡ | G69: 2024-12-20 | H69: 654,980.00 | I69: 否 | N69: 654,980.00 | P69: 654,980.00 | Q69: 0.00 | R69: 654,980.00 | S69: 0 | T69: 654,980.00 | U69: 0.00 | V69: 654980.00
A70: 1 | B70: 曹明霞 | C70: 曹明霞 | D70: 住房 | E70: 双水新区水城大道威烟路交叉口世纪佳苑1栋2单元15层1505号 | F70: 150.70 | G70: 2024-12-26 | H70: 444,324.00 | I70: 否 | J70: 368,800.00 | N70: =367859+20000 -> 387,859.00 | O70: 2024-12-24 | P70: 444,324.00 | Q70: -56,465.00 | R70: 387,859.00 | S70: -56465 | T70: 444,324.00 | U70: -56465.00 | V70: 387859.00
A71: 2 | B71: 六盘水德远商贸有限公司 | C71: 六盘水德远房地产开发有限公司 | D71: 住房 | E71: 钟山区钟山中路70号附3号城中湾畔3号楼24层2402号住宅 | F71: 245.43㎡ | G71: 2022/08/10 | H71: 1,227,797.43 | I71: 否 | J71: 950,000.00 | N71: 1,200,889.00 | O71: 2024-11-08 | Q71: 250,889.00 | R71: 1,200,889.00 | S71: -26908.43 | T71: 1,227,797.43 | U71: -26908.43 | V71: 1200889.00
A72: 4 | B72: 谭翌 | C72: 谭景 | D72: 住房 | E72: 钟山区青峰路3号附19（栋）1层101号 | F72: 118.25㎡ | G72: 2022/03/29 | H72: 433,266.17 | I72: 是 | J72: 388,000.00 | N72: 520,300.00 | O72: 2023-08-31 | Q72: 0.00 | R72: 520,300.00 | S72: 87033.83 | T72: 433,266.17 | U72: 0.00 | V72: 433266.17
A73: 5 | B73: 六盘水市钟山开发区泰瑞商务酒店有限公司 | C73: 熊剑 | D73: 住房 | E73: 六盘水市钟山区钟山中路59号A栋附2203号 | F73: 247.72㎡ | G73: 2018/12/29 | H73: 1,030,793.14 | I73: 否 | J73: 953,000.00 | L73: 92,439.87 | N73: 970,072.00 | O73: 2023-08-31 | Q73: 17,000.00 | R73: 970,072.00 | S73: -60721.14 | T73: 938,353.27 | U73: 0.00 | V73: 938353.27
A74: 6 | B74: 六盘水德远房地产开发有限公司 | C74: 六盘水德远商贸有限公司 | D74: 住房 | E74: 钟山区钟山中路70号附3号城中湾畔3号楼603号住宅 | F74: 164.81 | G74: 20220810 | H74: 824,453.58 | I74: 否 | J74: 577,200.00 | N74: 639,400.00 | O74: 2024年流拍价 | P74: 639,400.00 | Q74: =N74-P74 -> 0.00 | R74: 639,400.00 | S74: -185053.58 | T74: 824,453.58 | U74: =IF(R74-T74<0,R74-T74,0) -> -185053.58 | V74: 639400.00
A75: 7 | B75: 六盘水德远房地产开发有限公司 | C75: 六盘水德远商贸有限公司 | D75: 住房 | E75: 钟山区钟山中路70号附3号城中湾畔3号楼803号住宅 | F75: 164.81 | G75: 20220810 | H75: 824,453.58 | I75: 否 | J75: 578,200.00 | N75: 639,400.00 | O75: 2024年流拍价 | P75: 639,400.00 | Q75: 0.00 | R75: 639,400.00 | S75: -185053.58 | T75: 824,453.58 | U75: -185053.58 | V75: 639400.00
A76: 8 | B76: 何永明 | C76: 何永明 | D76: 住房 | E76: 钟山区碧云中路25号二单元303室 | F76: 116.43 | G76: 20220329 | H76: 335,318.40 | I76: 否 | J76: 282,800.00 | N76: =219936+90000 -> 309,936.00 | O76: 2024-05-08 | P76: 300,600.00 | Q76: 9,336.00 | R76: 300,600.00 | S76: -25382.4 | T76: 335,318.40 | U76: -34718.40 | V76: 300600.00
A77: 9 | B77: 谭洪刚 | C77: 夏红波 | D77: 住房 | E77: 钟山区钟山中路54号附3号606室 | F77: 191.49 | G77: 20221031 | H77: 716,863.00 | I77: 否 | J77: 596,100.00 | N77: 596,089.22 | O77: 2025年流拍价 | P77: 638,700.00 | Q77: -42,610.78 | R77: 596,089.22 | S77: -120773.78 | T77: 716,863.00 | U77: -120773.78 | V77: 596089.22
A78: 10 | B78: 谭洪刚 | C78: 夏红波 | D78: 住房 | E78: 钟山区钟山中路54号附3号706室 | F78: 191.49 | G78: 20221031 | H78: 716,863.00 | I78: 否 | J78: 596,100.00 | N78: 596,089.22 | O78: 2025年流拍价 | P78: 638,700.00 | Q78: -42,610.78 | R78: 596,089.22 | S78: -120773.78 | T78: 716,863.00 | U78: -120773.78 | V78: 596089.22
A79: 11 | B79: 六盘水鸿银建材有限公司 | C79: 六盘水市钟山区聚福房地产开发有限公司“聚福苑”项目2-1301 | D79: 住房 | E79: 钟山区聚福房地产开发有限公司“聚福苑” | F79: 139.35 | G79: 2022/08/18 | H79: 633,812.41 | I79: 不需过户 | J79: 627,075.00 | N79: 633,812.41 | P79: 633,812.41 | Q79: 0.00 | R79: 633,812.41 | S79: 0 | T79: 633,812.41 | U79: 0.00 | V79: 633812.41
A80: 12 | B80: 六盘水市钟山区聚福房地产开发有限公司 | C80: 六盘水鸿银建材有限公司 | D80: 住房 | E80: 钟山区聚福房地产开发有限公司“聚福苑” | F80: 4123.59 | G80: 20220818 | H80: 18,755,525.62 | I80: 不需过户 | J80: 14,432,600.00 | N80: =14308857+250000 -> 14,558,857.00 | O80: 2024-05-08 | P80: 18,755,525.62 | Q80: -4,196,668.62 | R80: 14,558,857.00 | S80: -4196668.62 | T80: 18,755,525.62 | U80: -4196668.62 | V80: 14558857.00
A81: 13 | B81: 曹明霞 | C81: 曹明霞 | D81: 住房 | E81: 双水新区水城大道威烟路交叉口世纪佳苑1栋2单元18层1805号 | F81: 150.70 | G81: 2024-12-26 | H81: 399,891.00 | I81: 否 | J81: 320,000.00 | N81: =319785+20000 -> 339,785.00 | O81: 2024-12-24 | P81: 399,891.00 | Q81: -60,106.00 | R81: 339,785.00 | S81: -60106 | T81: 399,891.00 | U81: -60106.00 | V81: 339785.00
A82: 14 | B82: 何元美 | C82: 何元美 | D82: 住房 | E82: 滥坝镇发其村石门坎组 | F82: 481.52 | G82: 20120331 | H82: 372,102.84 | I82: 不能过户 | J82: 208,400.00 | L82: 72,253.40 | M82: 104,497.65 | N82: 297,700.00 | O82: 2024年流拍价 | P82: 297,700.00 | Q82: 0.00 | R82: 297,700.00 | S82: -74402.84 | T82: 195,351.79 | U82: 0.00 | V82: 195351.79
A83: 15 | B83: 陈金菊 | C83: 六盘水万鸿商贸有限公司 | D83: 住房 | E83: 水城县双水新区钟山东路与高林路交叉处西北侧“世纪雅苑”住房 | F83: 127.97 | G83: 20191125 | H83: 457,130.57 | I83: 不能过户 | J83: 256,000.00 | N83: 297,018.00 | O83: 2024-07-03 | P83: 365,800.00 | Q83: -68,782.00 | R83: 297,018.00 | S83: -160112.57 | T83: 457,130.57 | U83: -160112.57 | V83: 297018.00
A84: 16 | B84: 陈雪 | C84: 徐贤燕 | D84: 住房 | E84: 钟山区钟山中路39号附4号的个人住房 | F84: 188 | G84: 20210928 | H84: 646,523.60 | I84: 否 | J84: 455,800.00 | N84: 574,500.00 | O84: 2024年流拍价 | P84: 574,500.00 | Q84: 0.00 | R84: 574,500.00 | S84: -72023.6 | T84: 646,523.60 | U84: -72023.60 | V84: 574500.00
A85: 17 | B85: 谭洪刚 | C85: 谭翌 | D85: 住房 | E85: 位于钟山区南环中路57号19单元601室建筑面积371.57平方米的住房 | F85: 371.57 | G85: 20220329 | H85: 1,429,572.34 | I85: 是 | J85: 800,600.00 | N85: 1,089,500.00 | O85: 2024年流拍价 | P85: 1,089,500.00 | Q85: 0.00 | R85: 1,089,500.00 | S85: -340072.34 | T85: 1,429,572.34 | U85: -340072.34 | V85: 1089500.00
A86: 18 | B86: 周平 | C86: 六盘水靖洋贸易有限公司 | D86: 住房 | E86: 钟山区钟山中路90号4栋1单元602室：建筑面积：207.66平方米 | F86: 207.66 | G86: 20201225 | H86: 1,077,085.42 | I86: 否 | J86: 603,200.00 | N86: 856,390.00 | O86: 2024-05-08 | P86: 808,000.00 | Q86: 48,390.00 | R86: 808,000.00 | S86: -220695.42 | T86: 1,077,085.42 | U86: -269085.42 | V86: 808000.00
A87: 19 | B87: 熊和辉 | C87: 六盘水市钟山开发区泰瑞商务酒店有限公司 | D87: 商业门面 | E87: 位于六盘水市钟山区碧云中路13号一单元103、104、201、202号 | F87: 一层100.27，二层226.24 | G87: 20181229 | H87: 2,757,485.14 | I87: 是 | J87: 1,544,200.00 | L87: 611,284.11 | N87: =1797438-200000 -> 1,597,438.00 | O87: 2024-05-08 | P87: 2,093,200.00 | Q87: -495,762.00 | R87: 1,597,438.00 | S87: -1160047.14 | T87: 2,146,201.03 | U87: -548763.03 | V87: 1597438.00
A88: 20 | B88: 熊和辉 | C88: 六盘水市钟山开发区泰瑞商务酒店有限公司 | D88: 商业门面 | E88: 位于六盘水市钟山区碧云中路13号二单元203、204号 | F88: 224.80 | G88: 20181229 | H88: 1,351,872.00 | I88: 是 | J88: 811,200.00 | L88: 32,116.11 | N88: 880,991.00 | P88: 1,027,500.00 | Q88: -146,509.00 | R88: 880,991.00 | S88: -470881 | T88: 1,319,755.89 | U88: -438764.89 | V88: 880991.00
A89: 21 | B89: 田茂 | C89: 六盘水钟山开发区立志砂石有限责任公司 | D89: 商业门面 | E89: 位于贵州省六盘水市钟山区凤凰路9号32号楼111、211室 | F89: 294.66 | G89: 20191226 | H89: 2,469,722.40 | I89: 否 | J89: 1,383,000.00 | K89: 14,200.00 | N89: 1,699,894.00 | P89: 1,877,700.00 | Q89: -177,806.00 | R89: 1,699,894.00 | S89: -769828.4 | T89: 2,469,722.40 | U89: -769828.40 | V89: 1699894.00
A90: 22 | B90: 田龙 | C90: 六盘水钟山开发区立志砂石有限责任公司 | D90: 商业门面 | E90: 位于贵州省六盘水市六盘水市钟山区凤凰路9号32号楼106、206室 | F90: 263.41 | G90: 20191226 | H90: 1,942,837.71 | I90: 否 | J90: 1,088,000.00 | K90: 14,200.00 | N90: 1,885,800.00 | O90: 2023-08-31 | P90: 1,476,600.00 | Q90: 409,200.00 | R90: 1,476,600.00 | S90: -57037.71 | T90: 1,942,837.71 | U90: -466237.71 | V90: 1476600.00
A91: 23 | B91: 田茂霖 | C91: 六盘水钟山开发区立志砂石有限责任公司 | D91: 商业门面 | E91: 位于贵州省六盘水市钟山区凤凰路9号32号楼107、207室 | F91: 294.66 | G91: 20191226 | H91: 2,173,410.51 | I91: 否 | J91: 1,304,000.00 | K91: 13,750.00 | N91: 1,997,300.00 | O91: 2023-08-31 | P91: 1,651,800.00 | Q91: 345,500.00 | R91: 1,651,800.00 | S91: -176110.51 | T91: 2,173,410.51 | U91: -521610.51 | V91: 1651800.00
A92: 24 | B92: 罗仁泉 | C92: 六盘水长信房地产开发有限公司 | D92: 商业用房 | E92: 六盘水市钟山区碧云中路10号附3号101室商业用房 | F92: 757.37 | G92: 20111230 | H92: 6,640,391.48 | I92: 否 | J92: 3,718,700.00 | K92: 277,500.00 | L92: 1,669,802.94 | M92: 455,936.17 | N92: =3984234.88-200000 -> 3,784,234.88 | O92: 2024-05-08 | P92: 5,046,700.00 | Q92: -1,262,465.12 | R92: 3,784,234.88 | S92: -2856156.6 | T92: 4,514,652.37 | U92: -730417.49 | V92: 3784234.88
A93: 25 | B93: 李艳 | C93: 六盘水鸿银建材有限公司 | D93: 商业用房 | E93: 钟山区八一路17号凉都花园1栋-103室 | F93: 868.58 | G93: 20210621 | H93: 6,855,147.77 | I93: 否 | J93: 3,838,900.00 | N93: 3,925,894.70 | O93: 2024-05-08 | P93: 6,069,200.00 | Q93: -2,143,305.30 | R93: 3,925,894.70 | S93: -2929253.07 | T93: 6,855,147.77 | U93: -2929253.07 | V93: 3925894.70
A94: 26 | B94: 六盘水德远房地产开发有限公司 | C94: 六盘水德远商贸有限公司 | D94: 商业用房住房 | E94: 钟山区钟山中路94号德远大厦1层103号、2层201号、3层301号、4层401号、5层501号商业用房 | F94: 3244.67 | G94: 20220810 | H94: 20,435,730.64 | I94: 否 | J94: 12,261,500.00 | K94: 240,000.00 | N94: 12,300,544.00 | P94: 15,326,800.00 | Q94: -3,026,256.00 | R94: 12,300,544.00 | S94: -8135186.64 | T94: 20,435,730.64 | U94: -8135186.64 | V94: 12300544.00
A95: 27 | B95: 高如刚 | C95: 高如刚 | D95: 住房 | E95: 六盘水市钟山区碧云中路10号附37号304室附37（栋）3层304号的 | F95: 130.72 | G95: 20200329 | H95: 477,603.00 | I95: 是 | J95: =#REF!*0.6 ->  | N95: 333,990.00 | P95: 363,000.00 | Q95: -29,010.00 | R95: 333,990.00 | S95: -143613 | T95: 477,603.00 | U95: -143613.00 | V95: 333990.00
A96: 28 | B96: 黄志安 | C96: 黄志安 | D96: 住房 | E96: 六盘水市钟山区花园路6号附3号C2室房屋 | F96: 292 | G96: 20231226 | H96: 3,889,440.00 | I96: 不能过户 | J96: 2,178,100.00 | N96: 2,250,000.00 | P96: 4,321,600.00 | Q96: -2,071,600.00 | R96: 2,250,000.00 | S96: -1639440 | T96: 3,889,440.00 | U96: -1639440.00 | V96: 2250000.00
A97: 29 | B97: 王忠军 | C97: 左常熙 | D97: 住房 | E97: 贵州省六盘水市钟山区纳水公路南侧老鹰山镇陆家坝家鹅组合鑫洗选厂旁的住房，为2层建筑，第一层176.09平方米；第二层为176.09平方米。 | F97: 352.18 | G97: 20180907 | H97: 429,080.58 | I97: 是 | J97: 240,300.00 | L97: 42,908.06 | N97: 302,523.00 | O97: 2024-07-03 | P97: 343,300.00 | Q97: -40,777.00 | R97: 302,523.00 | S97: -126557.58 | T97: 386,172.52 | U97: -83649.52 | V97: 302523.00
A98: 30 | B98: 叶明辉 | C98: 叶明辉 | D98: 住房 | E98: 钟山区碧云东路10号附55号2单元505室 | F98: 106.10 | G98: 2024-05-31 | H98: 430,420.30 | I98: 否 | J98: 258,300.00 | N98: 476,920.00 | P98: 381,600.00 | Q98: 95,320.00 | R98: 381,600.00 | S98: 46499.7 | T98: 430,420.30 | U98: -48820.30 | V98: 381600.00
A99: 31 | B99: 六盘水亿茂农业综合开发有限公司 | C99: 张桂香 | D99: 住房 | E99: 钟山区人民西路236号三单元505室 | F99: 104.03 | G99: 2023/12/18 | H99: 331,470.00 | I99: 否 | J99: 190,700.00 | N99: 331,470.00 | P99: 255,400.00 | Q99: 76,070.00 | R99: 255,400.00 | S99: 0 | T99: 331,470.00 | U99: -76070.00 | V99: 255400.00
A100: 32 | B100: 六盘水南海云天经贸有限公司 | C100: 六盘水南海云天经贸有限公司 | D100: 商业用房 | E100: 六盘水市钟山区青峰路3号附18号楼南海云天酒店商业用房 | F100: 5279.60 | G100: 20221121 | H100: 25,182,508.00 | I100: 否 | N100: 14,354,029.56 | P100: 24,013,400.00 | Q100: -9,659,370.44 | R100: 14,354,029.56 | S100: -10828478.44 | T100: 25,182,508.00 | U100: -10828478.44 | V100: 14354029.56
A101: 33 | B101: 六盘水南海云天经贸有限公司 | C101: 六盘水南海云天经贸有限公司 | D101: 商业用房 | E101: 钟山区青峰路3号附18号楼301号（凤凰山南海云天酒店）商业用房 | F101: 1363.90 | G101: 20220523 | H101: 8,344,575.41 | I101: 否 | N101: =H101*0.57 -> 4,756,407.98 | P101: 6,900,700.00 | Q101: -2,144,292.02 | R101: 4,756,407.98 | S101: -3588167.426 | T101: 8,344,575.41 | U101: -3588167.43 | V101: 4756407.98
A102: 34 | B102: 李艳 | C102: 六盘水鸿银建材有限公司 | D102: 商业用房 | E102: 钟山区八一路17#凉都花园1栋101室 | F102: 841.42 | G102: 20210621 | H102: 4,557,350.06 | I102: 否 | N102: =H102*0.6 -> 2,734,410.04 | P102: 3,463,600.00 | Q102: -729,189.96 | R102: 2,734,410.04 | S102: -1822940.024 | T102: 4,557,350.06 | U102: -1822940.02 | V102: 2734410.04
A103: 35 | B103: 李艳 | C103: 六盘水鸿银建材有限公司 | D103: 商业用房 | E103: 钟山区八一路17#凉都花园1栋102室 | F103: 859.99 | G103: 20210621 | H103: 4,776,868.80 | I103: 否 | N103: 2,866,121.28 | P103: 3,630,500.00 | Q103: -764,378.72 | R103: 2,866,121.28 | S103: -1910747.52 | T103: 4,776,868.80 | U103: -1910747.52 | V103: 2866121.28
A104: 36 | B104: 余勇 | C104: 余冬 | D104: 住宅房 | E104: 六盘水市钟山区人民中路214号附2号103室附2（栋）3层103号、六盘水市钟山区人民中路214号附2号203室附2（栋）4层203号 | F104: 230.50 | G104: 20200521 | H104: 892,240.00 | I104: 是 | N104: 535,344.00 | P104: 892,240.00 | Q104: -356,896.00 | R104: 535,344.00 | S104: -356896 | T104: 892,240.00 | U104: -356896.00 | V104: 535344.00
A105: 37 | B105: 唐东 | C105: 六盘水华南汽车运输有限公司 | D105: 商业用房 | E105: 钟山区八一路17号凉都花园6栋203至205室、8栋205、206室 | F105: 768.85 | G105: 20191225 | H105: 4,370,904.00 | I105: 否 | N105: 3,931,130.05 | O105: 2023-07-30 | P105: 3,321,900.00 | Q105: 609,230.05 | R105: 3,321,900.00 | S105: -439773.95 | T105: 4,370,904.00 | U105: -1049004.00 | V105: 3321900.00
A106: 38 | B106: 唐红军 | C106: 六盘水东产商贸有限公司 | D106: 商业用房 | E106: 贵州省六盘水市钟山区钟山中路67号1栋附70号、71号、72号、73号、74号 | F106: 1462.31 | G106: 20150327 | H106: 24,566,808.00 | I106: 是 | L106: 5,592,740.32 | M106: 3,852,954.96 | N106: 10,030,423.20 | P106: 18,670,800.00 | Q106: -8,640,376.80 | R106: 10,030,423.20 | S106: -14536384.8 | T106: 15,121,112.72 | U106: -5090689.52 | V106: 10030423.20
A107: 39 | B107: 陈劲钢 | C107: 六盘水凯鹏工贸有限公司 | D107: 商业用房 | E107: 贵阳市观山湖区长岭北路6号东原财富广场一期3号楼1单元20层1号、2号、3号、4号不动产 | F107: 1236.87 | G107: 20200931 | H107: 17,168,993.01 | I107: 否 | L107: 4,860,117.03 | N107: =8500000-409380 -> 8,090,620.00 | O107: 2024-05-08 | P107: 13,048,500.00 | Q107: -4,957,880.00 | R107: 8,090,620.00 | S107: -9078373.01 | T107: 12,308,875.98 | U107: -4218255.98 | V107: 8090620.00
A108: 合计 | H108: =SUM(H4:H107) -> 638,460,638.29 | I108: 0.00 | K108: 4,783,165.79 | L108: 28,189,249.99 | M108: 20,223,964.12 | N108: 555,693,607.24 | P108: =SUM(P4:P107) -> 565,914,314.58 | S108: -82,767,031.05 | T108: 590,047,424.18 | U108: -85,372,259.60 | V108: 504675164.58
B110: 经办人： | P110: 部门负责人： | T110: 分管领导
